Cogmind - Beta 15 @@@ ROGUE MODE // 2025.06.03 @ 12:06:05 Player: Nisakard Result: Self-destructed Performance ------------- Evolutions (4) 2000 Regions Visited (5) 1000 Robots Destroyed (49) 245 Value Destroyed (1082) 1082 Prototype IDs (0) 0 Alien Tech Used (0) 0 Bonus (849) 849 TOTAL SCORE: 5176 Bonus ------- Follower Combat Kills 49 Registered with UFD 300 Met Optimus in HQ 500 Cogmind --------- Core Integrity 203/850 Matter 300/300 Energy 78/100 System Corruption 8% Temperature Cool (0) Movement Core (1450) Ox28 Location -6/Factory Parts ------- > --- POWER (2) -------- (None) > --- PROPULSION (4) --- (None) > --- UTILITY (6) ------ Huge Storage Unit Signal Interpreter Seismic Detector Hacking Suite > --- WEAPON (3) ------- Scythe Scythe Scythe > --- INVENTORY (25) --- Improved Ion Engine Micro Nuclear Core Improved Aluminum Leg Improved Aluminum Leg High-capacity Matter Pod (200) Improved Melee Analysis Suite Energy Filter Hacking Suite A0-MCA's Component Scanner Recalibrator Heavy Laser Gauss Rifle Mini Grenade Launcher Long-range Missile Launcher Datajack Flail Mining Claw Scythe Peak State ------------ > --- POWER ------------ Improved Ion Engine > --- PROPULSION ------- Compact Wheel Armored Wheel Armored Wheel > --- UTILITY ---------- Huge Storage Unit Signal Interpreter Seismic Detector Hardened Light Armor Plating Hacking Suite > --- WEAPON ----------- Heavy Laser Overtuned Beamcaster Overtuned Beamcaster > --- INVENTORY -------- Improved Ion Engine Micro Nuclear Core Improved Aluminum Leg Improved Aluminum Leg High-capacity Matter Pod Improved Melee Analysis Suite Energy Filter Hacking Suite A0-MCA's Component Scanner Recalibrator Overtuned Barrage Gun Mini Grenade Launcher Long-range Missile Launcher Datajack Flail Mining Claw Scythe Scythe Scythe Scythe [Rating: 37] Favorites ----------- Power Ion Engine Engine Ion Engine Propulsion Improved Aluminum Leg Treads Light Treads Leg Improved Aluminum Leg Wheel Armored Wheel Utility Signal Interpreter Device Seismic Detector Storage Large Storage Unit Processor Signal Interpreter Hackware Hacking Suite Protection Medium Armor Plating Weapon Heavy Assault Rifle Energy Gun EM Pulse Gun Ballistic Gun Heavy Assault Rifle Launcher Grenade Launcher Special Weapon Welding Torch Slashing Weapon Scythe Build | -11 -10 -10 -10 -9 -6 ------- Run | Yrd Mat Min Sub Scr Fac Slots Evolved 8 | . . . . . 8 Power 1 | . . . . . 1 Propulsion 2 | . . . . . 2 Utility 4 | . . . . . 4 Weapon 1 | . . . . . 1 Parts Attached 51 | 6 20 3 1 6 15 Power 6 | 1 2 . 1 1 1 Engine 6 | 1 2 . 1 1 1 Core . | . . . . . . Reactor . | . . . . . . Propulsion 10 | 2 4 . . 2 2 Treads 2 | 2 . . . . . Leg 4 | . 4 . . . . Wheel 4 | . . . . 2 2 Hover . | . . . . . . Flight . | . . . . . . Utility 13 | 1 6 . . 1 5 Device 2 | . 2 . . . . Storage 6 | 1 3 . . 1 1 Processor 2 | . 1 . . . 1 Hackware 1 | . . . . . 1 Protection 2 | . . . . . 2 Artifact . | . . . . . . Weapon 22 | 2 8 3 . 2 7 Energy Gun 7 | 2 1 . . . 4 Energy Cannon . | . . . . . . Ballistic Gun 8 | . 5 1 . 2 . Ballistic Cannon . | . . . . . . Launcher 2 | . . 2 . . . Special Weapon 2 | . 2 . . . . Impact Weapon . | . . . . . . Slashing Weapon 3 | . . . . . 3 Piercing Weapon . | . . . . . . Special Melee Weapon . | . . . . . . Unidentified Prototypes . | . . . . . . Parts Lost 16 | . 2 1 2 . 11 Power 4 | . 1 . 1 . 2 Propulsion 3 | . . . . . 3 Utility 3 | . . . . . 3 Weapon 6 | . 1 1 1 . 3 Highest Loss Streak 6 | . 1 1 2 . 6 To Critical Strikes . | . . . . . . Average Backups 14 | 2 11 14 13 15 17 Power 2 | . 2 2 1 1 1 Propulsion 1 | 1 1 2 2 2 2 Utility 4 | . 2 5 5 6 4 Weapon 5 | . 3 5 4 5 8 Tool/Special . | . . . . . . Unused Backups 28 | . 4 1 . 6 17 Power 4 | . . 1 . 1 2 Propulsion 3 | . 1 . . . 2 Utility 8 | . 2 . . 1 5 Weapon 11 | . 1 . . 3 7 Tool/Special 2 | . . . . 1 1 Average Slot Usage (%) 96 | . 94 97 99 99 86 Engine 13 | . 11 14 14 14 11 Treads 3 | . 13 . . . . Leg 18 | . 14 28 28 19 . Wheel 4 | . . . . 8 16 Device 1 | . 4 . . . 5 Storage 13 | . 14 14 14 14 6 Processor 11 | . 7 14 14 14 11 Energy Gun 2 | . 6 . . . 3 Ballistic Gun 21 | . 20 14 27 28 14 Launcher 2 | . . 11 . . . Peak Build Rating 37 | 6 13 13 13 19 37 Average Rating 13 | 4 8 11 12 14 31 On Entrance 10 | . 6 13 13 13 18 Naked Turns . | . . . . . . Heaviest Build 112 | 12 31 31 31 93 112 Greatest Support 50 | 40 40 26 26 26 50 Greatest Overweight (x) 3 | 1 1 1 1 3 3 Average Overweight (x) 1 | . . 1 . 1 2 Largest Inventory Capacity 25 | 8 25 15 15 25 25 Average Capacity 15 | 6 12 15 15 16 21 Most Carried 24 | 4 15 15 14 20 24 Average Carried 14 | 2 11 14 13 15 17 Final Capacity 25 | 8 15 15 15 20 25 Final Carried 18 | 4 15 14 12 18 18 Class Distribution -------------------- 82% | Mutant 9% | Derelict-Mutant 6% | Derelict-Tank Dominant Class ---------------- Mutant | -10/Materials Mutant | -10/Mines Mutant | -10/Subcaves Mutant | -9/Scraptown Derelict-Tank | -6/Factory Resources | -11 -10 -10 -10 -9 -6 ----------- Run | Yrd Mat Min Sub Scr Fac Matter Collected 1879 | 251 785 381 31 137 294 Remotely . | . . . . . . Salvage Created 1762 | 77 1008 206 64 . 407 Parts 115 | 3 62 13 8 . 29 Haulers Intercepted 3 | . 2 . . . 1 Recyclers Shooed 5 | . 4 1 . . . Parts Field Recycled . | . . . . . . Retrieved Matter . | . . . . . . Parts Self-Destructed 8 | . . . 8 . . Prevented . | . . . . . . Kills | -11 -10 -10 -10 -9 -6 ------- Run | Yrd Mat Min Sub Scr Fac Combat Hostiles Destroyed 30 | . 15 4 4 . 7 Melee 2 | . . . . . 2 Guns 24 | . 13 2 4 . 5 AOE 4 | . 2 2 . . . Classes Destroyed 11 | 1 8 . . . 2 Worker 3 | . 3 . . . . Builder 1 | . 1 . . . . Hauler 3 | . 2 . . . 1 Recycler 5 | 1 3 1 . . . Mechanic 1 | . 1 . . . . Operator 3 | . 2 . . . 1 Watcher 3 | . 3 . . . . Swarmer 15 | . 8 . 4 . 3 Grunt 11 | . 7 4 . . . Hunter 2 | . . . . . 2 Programmer 2 | . . . . . 2 Best Kill Streak 5 | 1 5 3 4 . 3 Combat Bots Only 4 | . 3 2 4 . 3 Max Kills in Single Turn 2 | 1 2 2 1 . 1 Gunslinging . | . . . . . . Exploded 2 | . 2 2 . . . Melee 1 | . . . . . 1 Uniques/NPCs Destroyed . | . . . . . . Combat | -11 -10 -10 -10 -9 -6 -------- Run | Yrd Mat Min Sub Scr Fac Hostile Shots Fired 301 | . 67 14 78 . 142 Missed 73 | . 16 4 28 . 25 Hits 228 | . 51 10 50 . 117 Projectile 228 | . 51 10 50 . 117 Critical Strikes 8 | . 1 1 . . 6 Part Disruptions 1 | . . . . . 1 Damage Taken 3078 | . 601 278 324 . 1875 Core 848 | . 72 56 73 . 647 Absorbed by Shields . | . . . . . . Core Remaining (%) 59 | 100 . . . 19 . Volleys Fired 169 | 2 107 26 8 . 26 Largest 3 | 2 2 2 2 . 3 Hottest 223 | 80 100 60 46 . 223 Shots Fired 315 | 4 190 39 16 . 66 Gun 284 | 4 184 14 16 . 66 Cannon . | . . . . . . Launcher 25 | . . 25 . . . Special 6 | . 6 . . . . Kinetic 192 | . 125 14 16 . 37 Thermal 21 | . 6 . . . 15 Explosive 25 | . . 25 . . . Electromagnetic 77 | 4 59 . . . 14 Robot Hit Streak 10 | 2 10 6 2 . 10 Robot Miss Streak 5 | 1 4 3 5 . 5 Penetration Max . | . . . . . . Secondary Targets 4 | . 1 1 . . 2 Max Gunslinging Chain 1 | . 1 1 . . 1 Shots Hit Robots 171 | 2 107 9 6 . 47 Core Hits 77 | 2 45 9 4 . 17 Critical Kills . | . . . . . . Critical Parts Destroyed 2 | . 2 . . . . Critical Strikes 4 | . 3 . . . 1 Destroy 2 | . 2 . . . . Corrupt 1 | . 1 . . . . Sever 1 | . . . . . 1 Melee Attacks 15 | . . . . . 15 Impact . | . . . . . . Slashing 15 | . . . . . 15 Piercing . | . . . . . . Sneak Attacks 2 | . . . . . 2 Combat Hostiles . | . . . . . . Follow-up Attacks 6 | . . . . . 6 Damage Inflicted 2968 | 25 1554 265 109 . 1015 Guns 2254 | 25 1409 124 109 . 587 Cannons . | . . . . . . Explosions 286 | . 145 141 . . . Melee 428 | . . . . . 428 Ramming . | . . . . . . Kinetic 1456 | . 924 124 109 . 299 Thermal 316 | . 145 . . . 171 Explosive 141 | . . 141 . . . Electromagnetic 627 | 25 485 . . . 117 Impact . | . . . . . . Slashing 428 | . . . . . 428 Piercing . | . . . . . . Highest Corruption 8 | . . . . . 8 Average Corruption 2 | . . . . . 2 Corruption Purged . | . . . . . . Corruption Blocked . | . . . . . . Effects 7 | . . . . . 7 Matter Fused 1 | . . . . . 1 Energy Discharges 3 | . . . . . 3 Parts Fused 1 | . . . . . 1 Data Loss (minor) 1 | . . . . . 1 Weapon Failures 1 | . . . . . 1 Overload Shots . | . . . . . . Overflow Damage 34 | . . 34 . . . Projectiles . | . . . . . . Explosions 34 | . . 34 . . . Melee . | . . . . . . Knockbacks . | . . . . . . Impact . | . . . . . . Kinetic . | . . . . . . Secondary . | . . . . . . Self-Inflicted Damage 228 | . 77 151 . . . Shots 7 | . 2 5 . . . Rammed . | . . . . . . Targets Rammed . | . . . . . . Kicked . | . . . . . . Crushed . | . . . . . . Highest Temperature 670 | 6 138 24 . . 670 Average Temperature 107 | 3 47 9 . . 188 Received Heat Transfer 480 | . 201 93 186 . . Effects 11 | . . . . . 11 Shutdowns 3 | . . . . . 3 Energy Bleed 1 | . . . . . 1 Interference 3 | . . . . . 3 Matter Decay 1 | . . . . . 1 Short Circuit 1 | . . . . . 1 Damage (minor) 1 | . . . . . 1 Damage (core) 1 | . . . . . 1 Siege Activations . | . . . . . . Martial Activations . | . . . . . . Shielding Activations . | . . . . . . Robots Disrupted . | . . . . . . Combat Hostiles . | . . . . . . Robots Corrupted . | . . . . . . Combat Hostiles . | . . . . . . Parts Fried 2 | . 2 . . . . Impact Corruptions . | . . . . . . Robots Melted . | . . . . . . Combat Hostiles . | . . . . . . Parts Melted 2 | . . . . . 2 Heat Transferred 461 | . 150 . . . 311 Parts Sabotaged . | . . . . . . Parts Stolen . | . . . . . . Parts Stripped . | . . . . . . Power Chain Reactions 2 | . 2 . . . . Alert | -11 -10 -10 -10 -9 -6 ------- Run | Yrd Mat Min Sub Scr Fac Maximum Alert Level . | . . . . . . Low Security (%) 100 | 100 100 100 . . 100 Level 1 . | . . . . . . Level 2 . | . . . . . . Level 3 . | . . . . . . Level 4 . | . . . . . . Level 5 . | . . . . . . High Security . | . . . . . . Max Security . | . . . . . . Peak Influence 143 | 5 143 94 . . 42 Initial 10 | . . 10 . . . Average 25 | . 36 21 . . 7 Influence Increases 1153 | 5 503 268 155 . 222 Destroy 0b10 Robot/C 620 | . 300 80 80 . 160 Destroy 0b10 Robot/NC 95 | 5 75 5 . . 10 Destroy Leader 122 | . 70 20 . . 32 Allied During Kill 3 | . . . . . 3 Successful Hack 4 | . 4 . . . . Disable Machine 75 | . . 75 . . . Destroy Structure 99 | . 9 88 . . 2 Lose Combat Pursuer 135 | . 45 . 75 . 15 Influence Decreases 1119 | 5 476 217 122 111 188 Entered New Map 170 | . . 17 42 111 . Time Decay 799 | 5 424 190 60 . 120 Lost Part 98 | . 20 10 20 . 48 Lost Ally 20 | . . . . . 20 Purge Threat 32 | . 32 . . . . Squads Dispatched 7 | . 2 . . . 5 Investigation 1 | . 1 . . . . Extermination 1 | . . . . . 1 Reinforcement 2 | . 1 . . . 1 Assault . | . . . . . . Garrison 3 | . . . . . 3 Intercept . | . . . . . . Searches Triggered . | . . . . . . Construction Impeded . | . . . . . . Haulers Reinforced . | . . . . . . Active Scanning Responses . | . . . . . . Cargo Convoy Interrupts 1 | . . . . . 1 Stealth | -11 -10 -10 -10 -9 -6 --------- Run | Yrd Mat Min Sub Scr Fac Distress Signals 1 | . 1 . . . . Communications Jammed . | . . . . . . Distress Signals . | . . . . . . Times Spotted 66 | . 29 4 6 . 27 Peak Tracking Total 10 | . 3 2 5 . 10 Tactical Retreats 6 | . 2 . 3 . 1 Traps | -11 -10 -10 -10 -9 -6 ------- Run | Yrd Mat Min Sub Scr Fac Traps Triggered 2 | . 1 . . . 1 Indirectly . | . . . . . . Trap Hack Attempts . | . . . . . . Triggered . | . . . . . . Disarmed 6 | . 6 . . . . Reprogrammed . | . . . . . . Reused . | . . . . . . Traps Extracted . | . . . . . . Installed . | . . . . . . Triggered . | . . . . . . Machines | -11 -10 -10 -10 -9 -6 ---------- Run | Yrd Mat Min Sub Scr Fac Machines Disabled 6 | . . 5 1 . . Max in Single Turn 5 | . . 5 1 . . Machines Repaired . | . . . . . . Machines Dismantled . | . . . . . . Machines Sabotaged . | . . . . . . Overloaded Fab Kills . | . . . . . . Hacking | -11 -10 -10 -10 -9 -6 --------- Run | Yrd Mat Min Sub Scr Fac Machines Accessed 10 | . 7 . . 2 1 Terminals 6 | . 6 . . . . Fabricators . | . . . . . . Repair Stations . | . . . . . . Recycling Units 1 | . 1 . . . . Scanalyzers 1 | . . . . . 1 Garrison Access . | . . . . . . Total Hacks 30 | . 19 . . 10 1 Successful 18 | . 7 . . 10 1 Failed 12 | . 12 . . . . Catastrophic 4 | . 4 . . . . Database Lockouts . | . . . . . . Manual 10 | . 10 . . . . Terminals 17 | . 17 . . . . Fabricators . | . . . . . . Repair Stations . | . . . . . . Recycling Units 2 | . 2 . . . . Scanalyzers 1 | . . . . . 1 Garrison Access . | . . . . . . Terminal Hacks 15 | . 5 . . 10 . Record 2 | . . . . 2 . Robot Analysis 9 | . 1 . . 8 . Unreport Threat 1 | . 1 . . . . Locate Traps 1 | . 1 . . . . Disarm Traps 1 | . 1 . . . . Investigation Status 1 | . 1 . . . . Fabricator Hacks . | . . . . . . Repair Station Hacks . | . . . . . . Recycling Unit Hacks 2 | . 2 . . . . Report Inventory 1 | . 1 . . . . Retrieve Matter 1 | . 1 . . . . Scanalyzer 1 | . . . . . 1 Insert Component 1 | . . . . . 1 Garrison Access Hacks . | . . . . . . Unauthorized Hacks . | . . . . . . Terminals . | . . . . . . Fabricators . | . . . . . . Repair Stations . | . . . . . . Recycling Units . | . . . . . . Scanalyzers . | . . . . . . Garrison Access . | . . . . . . Data Cores Recovered 1 | . 1 . . . . Used . | . . . . . . Hacking Detections 7 | . 7 . . . . Full Trace Events 1 | . 1 . . . . Feedback Events . | . . . . . . Feedback Blocked . | . . . . . . Robot Schematics Acquired . | . . . . . . Robots Built . | . . . . . . Authchips . | . . . . . . Time . | . . . . . . Total Robot Build Rating . | . . . . . . Part Schematics Acquired . | . . . . . . Parts Built . | . . . . . . Authchips . | . . . . . . Time . | . . . . . . Total Part Build Rating . | . . . . . . Parts Repaired . | . . . . . . Time . | . . . . . . Parts Recycled . | . . . . . . Recycled Matter . | . . . . . . Retrieved Matter . | . . . . . . Retrieved Components . | . . . . . . Parts Scanalyzed . | . . . . . . Part Schematics Acquired . | . . . . . . Parts Damaged . | . . . . . . Bothacking | -11 -10 -10 -10 -9 -6 ------------ Run | Yrd Mat Min Sub Scr Fac Used RIF Installer . | . . . . . . Robots Hacked . | . . . . . . Non-combat . | . . . . . . Combat . | . . . . . . Robot Hacks Applied . | . . . . . . Relay Couplers Released . | . . . . . . Fabnet Peak Effective % . | . . . . . . Robots Rewired . | . . . . . . Allies Hacked . | . . . . . . Hacks Repelled . | . . . . . . Allies | -11 -10 -10 -10 -9 -6 -------- Run | Yrd Mat Min Sub Scr Fac Total Allies 1 | . . . . 1 . Largest Group 1 | . . . . 1 1 Highest-Rated Group 36 | . . . . 36 36 Highest-Rated Ally 36 | . . . . 36 36 Total Orders . | . . . . . . Ally Attacks 9 | . . . . . 9 Total Damage 226 | . . . . . 226 Kills 1 | . . . . . 1 Allies Corrupted . | . . . . . . Allies Melted . | . . . . . . Intel | -11 -10 -10 -10 -9 -6 ------- Run | Yrd Mat Min Sub Scr Fac Active Infowar (turns) 1502 | . 802 . . . 700 Optics 677 | . . . . . 677 Seismic 1498 | . 802 . . . 696 Robot Analysis Total 9 | . 1 . . 8 . Derelict Logs Recovered 2 | . . 1 1 . . Drone Launches . | . . . . . . Drone Recoveries . | . . . . . . Exploration | -11 -10 -10 -10 -9 -6 ------------- Run | Yrd Mat Min Sub Scr Fac Turns Passed 9153 | 110 2534 2354 469 2863 823 Spaces Moved 4758 | 62 1093 1187 204 1712 500 Core 7 | 7 . . . . . Treads 564 | 55 509 . . . . Legs 3021 | . 584 1187 204 1046 . Wheels 1166 | . . . . 666 500 Hover . | . . . . . . Flight . | . . . . . . Fastest Speed 50 | 50 120 190 120 105 105 Average Speed 169 | 149 175 190 189 162 121 Slowest Speed 190 | 160 190 190 190 190 140 Overloaded Moves . | . . . . . . Propulsion Burnouts . | . . . . . . Robots Hopped . | . . . . . . Potential Cave-ins . | . . . . . . Cave-ins Triggered . | . . . . . . Exploration Rate (%) 52 | 4 99 100 13 91 9 Regions Visited 5 Branch Regions 3 Pre-discovered Areas 2 | . . 1 . 1 . Known Exits Taken 4 | . 1 1 1 1 . Unknown Exits Taken 1 | 1 . . . . . Scrap Searched 6 | . . 1 . 5 . Spaces Dug 65 | . 1 64 . . . Terrain Destroyed 233 | . 6 225 . . 2 Melee . | . . . . . . Projectile 3 | . 1 . . . 2 AOE 230 | . 5 225 . . . Terrain Rammed . | . . . . . . Walls Destroyed . | . . . . . . Machines Disabled . | . . . . . . Actions | -11 -10 -10 -10 -9 -6 --------- Run | Yrd Mat Min Sub Scr Fac Total 5555 | 73 1521 1246 270 1791 654 Wait 471 | . 259 28 56 43 85 Move 4753 | 61 1092 1186 203 1711 500 Hop . | . . . . . . Pick Up 54 | 4 20 1 . 16 13 Fast Attach 13 | 6 4 . . 1 2 Attach 14 | . 1 1 2 . 10 Detach 1 | . 1 . . . . Swap 37 | . 21 3 1 7 5 Drop 34 | . 16 1 . 13 4 Fire 169 | 2 107 26 8 . 26 Melee 9 | . . . . . 9 Ram . | . . . . . . Kick . | . . . . . . Crush . | . . . . . . Escape Stasis . | . . . . . . Rewire . | . . . . . . Trap . | . . . . . . Miscellaneous . | . . . . . . Route ------- -11/Scrapyard -10/Materials (discovered 5 exits: *Mat x3 / *Min x2) -10/Mines (discovered 3 exits: *Mat x2 / *Sub) -10/Subcaves (discovered 2 exits: [*Rec] / *Scr) -9/Scraptown (discovered 2 exits: *Fac x2) -6/Factory (discovered 1 exit: *Low) History --------- Turn | Location | Event 2 | -11/Scrapyard | Met Revision 17 4 | -11/Scrapyard | Discovered new exit (range 15) 111 | -11/Scrapyard | Entered Materials 301 | -10/Materials | Build established: Mutant 513 | -10/Materials | Discovered new exit (range 15) 1228 | -10/Materials | Discovered new exit (range 5) 1841 | -10/Materials | Discovered new exit (range 9) 2077 | -10/Materials | Discovered new exit (range 6) 2309 | -10/Materials | Discovered new exit (range 8) 2643 | -10/Materials | Identified exit to Mines 2645 | -10/Materials | Entered Mines 3231 | -10/Mines | Discovered new exit (range 9) 3250 | -10/Mines | Identified exit to Subcaves 3362 | -10/Mines | Found DCF Scrap (13 items) 3391 | -10/Mines | Discovered new exit (range 3) 3399 | -10/Mines | Identified exit to Materials 3585 | -10/Mines | Learned location of Zion (-7) 3805 | -10/Mines | Discovered exit to Materials (range 10) 4895 | -10/Mines | Core integrity fell below 50% 4999 | -10/Mines | Entered Subcaves 5000 | -10/Subcaves | Approached by a straggling Scientist 5036 | -10/Subcaves | Learned 2 Materials zone layouts 5447 | -10/Subcaves | Discovered new exit (range 16) 5455 | -10/Subcaves | Scientist uncovered a shortcut to Scraptown 5458 | -10/Subcaves | Core integrity fell below 20% 5466 | -10/Subcaves | Identified exit to Scraptown 5468 | -10/Subcaves | Entered Scraptown 5536 | -9/Scraptown | Learned location of Extension (-6) 6386 | -9/Scraptown | Visited Assassins FH 6438 | -9/Scraptown | Visited UFD Registry 6438 | -9/Scraptown | Registered with UFD as "Plasmaslicer" 6512 | -9/Scraptown | Visited Science Testing Area 6586 | -9/Scraptown | Visited Red Mages 6677 | -9/Scraptown | Visited SPCMW 6799 | -9/Scraptown | Discovered new exit (range 7) 6975 | -9/Scraptown | Visited Comm Corps 7044 | -9/Scraptown | Visited Shadow of the Wyrm 7192 | -9/Scraptown | Visited Observation Area 7323 | -9/Scraptown | Visited A0-MCA Data Center 7334 | -9/Scraptown | Given a B rating by A0-MCA 7341 | -9/Scraptown | Found A0-MCA's Component Scanner 7380 | -9/Scraptown | Visited Chapter 10 7431 | -9/Scraptown | Visited DA-N13 Charitable Foundation 7450 | -9/Scraptown | Found DCF Scrap (30 items) 7650 | -9/Scraptown | Discovered new exit (range 3) 7656 | -9/Scraptown | Identified exit to Factory 7713 | -9/Scraptown | Visited Modified Component R&D 7764 | -9/Scraptown | Build established: Derelict-Mutant 7784 | -9/Scraptown | Visited Analyses Database 7812 | -9/Scraptown | Visited Botcube Research 7823 | -9/Scraptown | Found Botcube 8118 | -9/Scraptown | Botcube activated 8134 | -9/Scraptown | Botcube completed mutation into legged form, armed with 1 gun, 1 cannon. 8251 | -9/Scraptown | Met Optimus 8251 | -9/Scraptown | Accepted into 0bPrime 8331 | -9/Scraptown | Entered Factory 8331 | -6/Factory | Accompanied by 1 ally 8331 | -6/Factory | Evolved 8 slots: Power x1, Propulsion x2, Utility x4, Weapon x1 8480 | -6/Factory | Discovered new exit (range 17) 8515 | -6/Factory | Identified exit to Lower Caves 8623 | -6/Factory | Build established: Derelict-Tank 8870 | -6/Factory | Garrison activated, responded to threat 9053 | -6/Factory | Lost 6 parts (1p1n1u3w) 9132 | -6/Factory | Cargo convoy interrupted 9146 | -6/Factory | Core integrity fell below 50% 9154 | -6/Factory | Self-destructed Last Messages --------------- 09138_ Slug penetrates Wall. 09141_ Scythe follow-up attack on P-60 Hacker. 09141_ Slug penetrates Wall. 09142_ K-01 Serf collects debris. 09143_ Arm. Wheel destroyed. 09143_ P-60 Hacker destroyed. 09144_ Slug penetrates Wall. 09145_ Wall collapses. 09146_ Scythe follow-up attack on P-60 Hacker. 09147_ Slug penetrates Wall. 09147_ Penetrated by Slug. 09148_ U-05 Engineer builds a Wall. 09148_ K-01 Serf collects debris. 09149_ System corrupted: Energy discharge (-27). 09149_ Scythe follow-up attack on P-60 Hacker. 09150_ K-01 Serf collects debris. 09151_ Slug penetrates U-05 Engineer. 09151_ Slug penetrates Wall. 09151_ K-01 Serf collects debris. 09151_ Scythe follow-up attack on P-60 Hacker. Map ----- +----------------------------------------------------+ | ???????????# #???????# #?????????????????? | | ???????????# ######### #?????????????????? | | ???????????# #?????????????????? | | ???????????# #?????????????????? | | ???????????# #?????????????????? | | ???????????# ###########???????? | | ???????????# # """ """ #???????? | | ???????################### # """ """ #???????? | | ???????# # # """ """ #???????? | | ???????# # # #???????? | | ???????# / # + #???????? | | ???????# !# # #???????? | | ???????# !! # # #???????? | | ???????# # # #???????? | | ???????# # ##+########???????? | | ???????###############+### #####??????????? | | ??????????????????# #??????????? | | ??????????????????# #??????????? | | ??????????????????# #??????????? | | ??????????????????# [ ############ | | ??????????????????# [ # | | ??????????????????# p ####+############## # """ | | ??????????????????# *#!p # # # """ | | ??????????????????# ku=#!x" " " " " # + + "S | | ???????????? + [%p%!" " " " " # # # """ | | ?????????" """ # [%#@[" " " " " # # # "" | | ?????????????""???# !#!!" " " " " # # # | | ??????????????????# #= " " " " " # # ###### | | ??????????????????# # " " " " " # # ####?? | | ??????????????????# # " " " " " # # #?? | | ??????????????????# # " " " " " # # #?? | | ??????????????????# # " " " " " ###### #?? | | ??????????????????# # + #?? | | ??????????????????# # ######### #?? | | ??????????????????# ############## #??# #?? | | ??????????????????# ?????????????# #??# #?? | | ??????????????????# ?????????????# #??# #?? | | ??????????????????? ?????????????# #### #?? | | ????????????????????? ?????????????# + #?? | | ?????????????????????????????????????# # #?? | | ?????????????????????????????????????# # #?? | | ?????????????????????????????????????# + #?? | | ?????????????????????????????????????# #### #?? | | ?????????????????????????????????????######??# #?? | | ?????????????????????????????????????????????# #?? | | ?????????????????????????????????????????????# #?? | | ?????????????????????????????????????????????# #?? | | ?????????????????????????????????????????????# #?? | | ?????????????????????????????????????????????# #?? | | ?????????????????????????????????????????????# #?? | +----------------------------------------------------+ Best States ------------- Heat Dissipation 37 Energy Generation 19 Energy Capacity 430 Matter Stores 300 Matter Capacity 300 Sight Range 20 Terrain Scan Density 10 Armor Coverage 225 Evasion (%) 50 Recoil Reduction 2 Offensive Hacking 10 Item Schematics ----------------- None Robot Schematics ------------------ None Fabricated ------------ Nothing Repaired ---------- Nothing Alien Tech Used ----------------- None Achievements -------------- None Challenges ------------ None Game ------ Seed ElectronLinearGenerator Manual? 0 Play Time 00:49:26 Cumulative 11.7 hours Start 2025.06.03 @ 11:17:50 End 2025.06.03 @ 12:06:05 Sessions 1 Manual Loads 0 Difficulty Rogue Special Mode None Game No. 21 Rogue 21 Adventurer 0 Explorer 0 Win Type - Total 0 Types 0/0/0/0/0/0/0/0/0/0 Lore% 27 Gallery% 15 Achievement% 25 Wizard Run 0 Options --------- Layout 1 ASCII 0 Keyboard 0 Movement Numpad Keybinds 0 Fullscreen 2 Font 24/Smallcaps Map View 50x35 Zoom Use 0% Tactical HUD 1 Map Filters NONE Filters NONE Steam 1 RUN: d0554b9a-77ce-4681-b7ec-b5f946497bf7